Cogmind - Beta 15 @@@ ROGUE MODE // 2025.05.25 @ 21:08:02 // Winter2022/Polymind Player: Figgis Result: Destroyed by exploding Fusion Modulator Performance ------------- Evolutions (0) 0 Regions Visited (1) 200 Robots Destroyed (6) 30 Value Destroyed (133) 133 Prototype IDs (0) 0 Alien Tech Used (0) 0 Bonus (330) 330 TOTAL SCORE: 443 Bonus ------- Polymind Skill 330 Cogmind --------- Core Integrity 0/250 Matter 81/100 Energy 75/75 System Corruption 0% Temperature Warm (117) Movement Flying (40) Location -10/Materials Parts ------- > --- POWER (1) -------- Light Ion Engine > --- PROPULSION (2) --- Flight Unit > --- UTILITY (0) ------ (None) > --- WEAPON (1) ------- Light Assault Rifle > --- INVENTORY (0) ---- (None) Peak State ------------ > --- POWER ------------ Light Ion Engine > --- PROPULSION ------- Flight Unit Flight Unit > --- UTILITY ---------- (None) > --- WEAPON ----------- Light Assault Rifle > --- INVENTORY -------- (None) [Rating: 4] Favorites ----------- Power Light Ion Engine Engine Light Ion Engine Propulsion Flight Unit Flight Unit Flight Unit Utility None Weapon Light Assault Rifle Ballistic Gun Light Assault Rifle Build | -11 -10 ------- Run | Yrd Mat Slots Evolved . | . . Power . | . . Propulsion . | . . Utility . | . . Weapon . | . . Parts Attached . | . . Power . | . . Engine . | . . Core . | . . Reactor . | . . Propulsion . | . . Treads . | . . Leg . | . . Wheel . | . . Hover . | . . Flight . | . . Utility . | . . Device . | . . Storage . | . . Processor . | . . Hackware . | . . Protection . | . . Artifact . | . . Weapon . | . . Energy Gun . | . . Energy Cannon . | . . Ballistic Gun . | . . Ballistic Cannon . | . . Launcher . | . . Special Weapon . | . . Impact Weapon . | . . Slashing Weapon . | . . Piercing Weapon . | . . Special Melee Weapon . | . . Unidentified Prototypes . | . . Parts Lost 1 | . 1 Power . | . . Propulsion 1 | . 1 Utility . | . . Weapon . | . . Highest Loss Streak 1 | . 1 To Critical Strikes . | . . Average Backups . | . . Power . | . . Propulsion . | . . Utility . | . . Weapon . | . . Tool/Special . | . . Unused Backups . | . . Power . | . . Propulsion . | . . Utility . | . . Weapon . | . . Tool/Special . | . . Average Slot Usage (%) 81 | . 81 Engine 20 | . 20 Flight 40 | . 40 Ballistic Gun 20 | . 20 Peak Build Rating 4 | . 4 Average Rating 3 | . 3 On Entrance . | . . Naked Turns 14 | . 14 Heaviest Build 4 | . 4 Greatest Support 8 | 3 8 Greatest Overweight (x) . | . . Average Overweight (x) . | . . Largest Inventory Capacity . | . . Average Capacity . | . . Most Carried . | . . Average Carried . | . . Final Capacity . | . . Final Carried . | . . Class Distribution -------------------- 86% | Swarmer 13% | Cogmind Dominant Class ---------------- Swarmer | -10/Materials Resources | -11 -10 ----------- Run | Yrd Mat Matter Collected 11 | . 11 Remotely . | . . Salvage Created 131 | . 131 Parts 9 | . 9 Haulers Intercepted . | . . Recyclers Shooed . | . . Parts Field Recycled . | . . Retrieved Matter . | . . Parts Self-Destructed . | . . Prevented . | . . Kills | -11 -10 ------- Run | Yrd Mat Combat Hostiles Destroyed 4 | . 4 Guns 3 | . 3 AOE 1 | . 1 Classes Destroyed 3 | . 3 Watcher 2 | . 2 Swarmer 2 | . 2 Grunt 2 | . 2 Best Kill Streak 3 | . 3 Combat Bots Only 2 | . 2 Max Kills in Single Turn 1 | . 1 Gunslinging . | . . Exploded 1 | . 1 Melee . | . . Uniques/NPCs Destroyed . | . . Combat | -11 -10 -------- Run | Yrd Mat Hostile Shots Fired 23 | . 23 Missed 8 | . 8 Hits 15 | . 15 Projectile 15 | . 15 Damage Taken 378 | . 378 Core 271 | . 271 Absorbed by Shields . | . . Core Remaining (%) 100 | 100 . Volleys Fired 34 | . 34 Largest 1 | . 1 Hottest 20 | . 20 Shots Fired 34 | . 34 Gun 34 | . 34 Cannon . | . . Launcher . | . . Special . | . . Kinetic 34 | . 34 Thermal . | . . Explosive . | . . Electromagnetic . | . . Robot Hit Streak 5 | . 5 Robot Miss Streak 3 | . 3 Penetration Max . | . . Secondary Targets . | . . Shots Hit Robots 19 | . 19 Core Hits 12 | . 12 Critical Kills . | . . Critical Parts Destroyed . | . . Critical Strikes . | . . Melee Attacks . | . . Impact . | . . Slashing . | . . Piercing . | . . Sneak Attacks . | . . Combat Hostiles . | . . Follow-up Attacks . | . . Damage Inflicted 150 | . 150 Guns 150 | . 150 Cannons . | . . Explosions . | . . Melee . | . . Ramming . | . . Kinetic 150 | . 150 Thermal . | . . Explosive . | . . Electromagnetic . | . . Impact . | . . Slashing . | . . Piercing . | . . Highest Corruption . | . . Average Corruption . | . . Corruption Purged . | . . Corruption Blocked . | . . Overload Shots . | . . Overflow Damage . | . . Projectiles . | . . Explosions . | . . Melee . | . . Knockbacks . | . . Impact . | . . Kinetic . | . . Secondary . | . . Self-Inflicted Damage . | . . Shots . | . . Rammed . | . . Targets Rammed . | . . Kicked . | . . Crushed . | . . Highest Temperature 93 | . 93 Average Temperature 27 | . 27 Received Heat Transfer 84 | . 84 Siege Activations . | . . Martial Activations . | . . Shielding Activations . | . . Robots Disrupted . | . . Combat Hostiles . | . . Robots Corrupted . | . . Combat Hostiles . | . . Parts Fried . | . . Impact Corruptions . | . . Robots Melted . | . . Combat Hostiles . | . . Parts Melted . | . . Heat Transferred . | . . Parts Sabotaged . | . . Parts Stolen . | . . Parts Stripped . | . . Power Chain Reactions . | . . Alert | -11 -10 ------- Run | Yrd Mat Maximum Alert Level . | . . Low Security (%) 100 | 100 100 Level 1 . | . . Level 2 . | . . Level 3 . | . . Level 4 . | . . Level 5 . | . . High Security . | . . Max Security . | . . Peak Influence 52 | . 52 Initial . | . . Average 30 | . 33 Influence Increases 122 | . 122 Destroy 0b10 Robot/C 80 | . 80 Destroy 0b10 Robot/NC 10 | . 10 Destroy Leader 14 | . 14 Successful Hack 18 | . 18 Influence Decreases 60 | . 60 Time Decay 50 | . 50 Lost Part 10 | . 10 Squads Dispatched . | . . Investigation . | . . Extermination . | . . Reinforcement . | . . Assault . | . . Garrison . | . . Intercept . | . . Searches Triggered . | . . Construction Impeded . | . . Haulers Reinforced . | . . Active Scanning Responses . | . . Cargo Convoy Interrupts . | . . Stealth | -11 -10 --------- Run | Yrd Mat Distress Signals 2 | . 2 Communications Jammed . | . . Distress Signals . | . . Times Spotted 8 | . 8 Peak Tracking Total 3 | . 3 Tactical Retreats . | . . Traps | -11 -10 ------- Run | Yrd Mat Traps Triggered . | . . Indirectly . | . . Trap Hack Attempts . | . . Triggered . | . . Disarmed . | . . Reprogrammed . | . . Reused . | . . Traps Extracted . | . . Installed . | . . Triggered . | . . Machines | -11 -10 ---------- Run | Yrd Mat Machines Disabled . | . . Max in Single Turn . | . . Machines Repaired . | . . Machines Dismantled . | . . Machines Sabotaged . | . . Overloaded Fab Kills . | . . Hacking | -11 -10 --------- Run | Yrd Mat Machines Accessed 2 | . 2 Terminals 2 | . 2 Fabricators . | . . Repair Stations . | . . Recycling Units . | . . Scanalyzers . | . . Garrison Access . | . . Total Hacks 5 | . 5 Successful 3 | . 3 Failed 2 | . 2 Catastrophic 1 | . 1 Database Lockouts . | . . Manual 6 | . 6 Terminals 5 | . 5 Fabricators . | . . Repair Stations . | . . Recycling Units . | . . Scanalyzers . | . . Garrison Access . | . . Terminal Hacks 3 | . 3 Robot Analysis 3 | . 3 Fabricator Hacks . | . . Repair Station Hacks . | . . Recycling Unit Hacks . | . . Scanalyzer . | . . Garrison Access Hacks . | . . Unauthorized Hacks . | . . Terminals . | . . Fabricators . | . . Repair Stations . | . . Recycling Units . | . . Scanalyzers . | . . Garrison Access . | . . Data Cores Recovered . | . . Used . | . . Hacking Detections 2 | . 2 Full Trace Events . | . . Feedback Events . | . . Feedback Blocked . | . . Robot Schematics Acquired . | . . Robots Built . | . . Authchips . | . . Time . | . . Total Robot Build Rating . | . . Part Schematics Acquired . | . . Parts Built . | . . Authchips . | . . Time . | . . Total Part Build Rating . | . . Parts Repaired . | . . Time . | . . Parts Recycled . | . . Recycled Matter . | . . Retrieved Matter . | . . Retrieved Components . | . . Parts Scanalyzed . | . . Part Schematics Acquired . | . . Parts Damaged . | . . Bothacking | -11 -10 ------------ Run | Yrd Mat Used RIF Installer . | . . Robots Hacked 1 | . 1 Non-combat . | . . Combat 1 | . 1 Robot Hacks Applied 1 | . 1 find_shortcuts 1 | . 1 Relay Couplers Released . | . . Fabnet Peak Effective % . | . . Robots Rewired . | . . Allies Hacked . | . . Hacks Repelled . | . . Allies | -11 -10 -------- Run | Yrd Mat Total Allies . | . . Largest Group . | . . Highest-Rated Group . | . . Highest-Rated Ally . | . . Total Orders . | . . Ally Attacks . | . . Total Damage . | . . Kills . | . . Allies Corrupted . | . . Allies Melted . | . . Intel | -11 -10 ------- Run | Yrd Mat Active Infowar (turns) . | . . Robot Analysis Total 3 | . 3 Derelict Logs Recovered . | . . Drone Launches . | . . Drone Recoveries . | . . Exploration | -11 -10 ------------- Run | Yrd Mat Turns Passed 114 | 9 105 Spaces Moved 121 | 18 103 Core 38 | 18 20 Treads . | . . Legs . | . . Wheels . | . . Hover . | . . Flight 83 | . 83 Fastest Speed 37 | 50 37 Average Speed 41 | 50 39 Slowest Speed 50 | 50 50 Overloaded Moves . | . . Propulsion Burnouts . | . . Robots Hopped 1 | . 1 Potential Cave-ins . | . . Cave-ins Triggered . | . . Exploration Rate (%) 14 | 3 25 Regions Visited 1 Branch Regions . Pre-discovered Areas . | . . Known Exits Taken . | . . Unknown Exits Taken 1 | 1 . Scrap Searched . | . . Spaces Dug . | . . Terrain Destroyed . | . . Melee . | . . Projectile . | . . AOE . | . . Terrain Rammed . | . . Walls Destroyed . | . . Machines Disabled . | . . Actions | -11 -10 --------- Run | Yrd Mat Total 156 | 17 139 Wait 3 | . 3 Move 118 | 17 101 Hop 1 | . 1 Pick Up . | . . Fast Attach . | . . Attach . | . . Detach . | . . Swap . | . . Drop . | . . Fire 34 | . 34 Melee . | . . Ram . | . . Kick . | . . Crush . | . . Escape Stasis . | . . Rewire . | . . Trap . | . . Miscellaneous . | . . Route ------- -11/Scrapyard -10/Materials History --------- Turn | Location | Event 4 | -11/Scrapyard | Discovered new exit (range 13) 10 | -11/Scrapyard | Entered Materials 115 | -10/Materials | Destroyed by exploding Fusion Modulator Last Messages --------------- 00052_ K-01 Serf collects debris. 00054_ Connecting with Terminal... >>Analysis(S-10 Pest) Downloading analysis... S-10 Pest Tier: 1 Existing analysis record match found: S-series swarmers are small with a weak and exposed core, but as such are quick to manufacture and can quickly overwhelm targets with greater numbers and superior speed. The light assault rifle was designed specifically for the S-10 Pest, giving it respectable firepower at a low weight for maintaining high flight speeds. Swarmer squads are particularly susceptible to explosives. 00085_ K-01 Serf collects debris. 00086_ W-16 Scout destroyed. 00090_ K-01 Serf collects debris. 00110_ G-47 Trooper destroyed. 00115_ Fusion Modulator explodes. 00115_ G-34 Mercenary destroyed. 00115_ Flight Unit destroyed. Map ----- +----------------------------------------------------+ | ???????????????????????????????????????????# [ | | ???????????????????????????????????????????# [ | | ???????????????????????????????????????????# [ | | ???????????????????????????????????????????# [ | | ???????????????????????????????????????????# ### | | ???????????????????????????????????????????# #] | | ????????????????????????????????????######## # | | ????????????????????????????????????# ## # | | ????????????????????????????????????# ## =+ | | ????????????????????????????????????# ## # | | ????????????????????????????????????# ## # | | ????????????????????????????????????# ## ### | | ??????????????????#?????????????????# ## #?? | | ?????????????????? ????????????????# ## #?? | | ?????????????????"" ????????????????# ## %!#?? | | ????????????????#!! ???????????????# ## %#?? | | ????????????????#"" ???????????????# ## #?? | | ????????????????#!! ??????????????# ## #?? | | ????????????????#"" ??????????????# ## ##? | | ?????????????????" ??##############+### #? | | ????????????######## w### #? | | ??????????? u = " #? | | ??????????? !%= #? | | ?????????? #####+##+### #? | | ?????????? ## ! =### #? | | ????????????"" s ## #?# #? | | ????????????"" ## #?# #? | | ????????????"" ## " """ #?# #? | | ??????????? ## T """ #?# #? | | ??????????? ## " """ #?? #? | | ????????????"" """ %= ## #?? #? | | ?????????????" ?""" % ############?? ? | | ????????????????""" ????????????? ? | | ???????????????? a ????????????? + | | ???????????????? a ???????????? ? | | ????????????????########### ??????????? ??? | | ??????????????????????????? ?????????????? | | ??????????????????????????? ??????????????? | | ??????????????????????????? ????????????????? | | ???????????????????????????? ???????????????????? | | ?????????????????????????????????????????????????? | | ?????????????????????????????????????????????????? | | ?????????????????????????????????????????????????? | | ?????????????????????????????????????????????????? | | ?????????????????????????????????????????????????? | | ?????????????????????????????????????????????????? | | ?????????????????????????????????????????????????? | | ?????????????????????????????????????????????????? | | ?????????????????????????????????????????????????? | | ?????????????????????????????????????????????????? | +----------------------------------------------------+ Best States ------------- Heat Dissipation 25 Energy Generation 15 Energy Capacity 100 Matter Stores 100 Matter Capacity 100 Sight Range 16 Terrain Scan Density 10 Evasion (%) 62 Item Schematics ----------------- None Robot Schematics ------------------ None Fabricated ------------ Nothing Repaired ---------- Nothing Alien Tech Used ----------------- None Achievements -------------- None Challenges ------------ None Polymind | -11 -10 ---------- Run | Yrd Mat Hosts 1 | . 1 Combat Hostiles 1 | . 1 Allies . | . . Unique Host Classes 1 | . 1 Average Host Suspicion 100 | . 100 Unsuspicious Activity . | . . Returns to Shadow . | . . Fuzzy Dispatches . | . . Protomatter Created 3 | . 3 Used 6 | . 6 Decayed . | . . Highest Spend 6 | . 6 Top 5 Hosts by Kills: S-10 Pest (-10/Materials: 4) Game ------ Seed AmuletThrusterSuite Manual? 0 Play Time 00:03:30 Cumulative 150.6 hours Start 2025.05.25 @ 21:06:08 End 2025.05.25 @ 21:08:02 Sessions 1 Manual Loads 0 Difficulty Rogue Special Mode Winter2022/Polymind Game No. 219 Rogue 216 Adventurer 3 Explorer 0 Win Type - Total 1 Types 1/0/0/0/0/0/0/0/0/0 Lore% 35 Gallery% 55 Achievement% 44 Wizard Run 0 Options --------- Layout 0 ASCII 0 Keyboard 0 Movement Mouse Keybinds 0 Fullscreen 2 Font 18/SmallcapsGlow Map View 76x50 Zoom Use 0% Tactical HUD 1 Map Filters NONE Filters NONE Steam 1 RUN: b284febf-bc60-4a45-9c8f-c624a83061fd